bitfinex/quotes_SOLUSD_20220307
["timestamp","ask_amount","ask_price","bid_price","bid_amount"]
[1646657684342,1.60541886,84.242,84.193,119.4]
[1646657684641,1.60541886,84.242,84.194,6.25]
[1646657684841,1.60541886,84.241,84.195,6.25]
[1646657685042,47.04786407,84.24,84.194,0.56754099]
[1646657685242,0.25,84.239,84.195,0.56754099]
[1646657685443,0.25,84.239,84.196,0.56754099]
[1646657685842,0.25,84.239,84.2,17.8157]
[1646657686044,1.60541886,84.244,84.201,0.25]
[1646657686343,0.25,84.243,84.201,0.56754099]
[1646657686546,0.25,84.243,84.202,0.56754099]
[1646657686743,39.09326149,84.243,84.202,0.56754099]
[1646657687144,1.60541886,84.242,84.202,0.56754099]
[1646657687545,1.60541886,84.242,84.194,0.25]
[1646657687546,1.60541886,84.24,84.194,0.25]
[1646657687745,1.60541886,84.237,84.194,0.25]
[1646657687944,1.60541886,84.236,84.188,0.56754099]
[1646657688144,1.60541886,84.236,84.19,17.8194]
[1646657688344,1.60541886,84.236,84.191,6.25]
[1646657688546,1.60541886,84.235,84.191,6.25]
[1646657689348,0.25,84.234,84.191,0.25]
[1646657690150,1.60541886,84.236,84.191,0.25]
[1646657690352,0.25,84.235,84.191,0.25]
[1646657690549,1.60541886,84.238,84.191,0.25]
[1646657690856,0.25,84.237,84.191,0.25]
[1646657691054,1.60541886,84.239,84.191,0.25]
[1646657692152,1.60541886,84.239,84.192,0.56754099]
[1646657692351,1.60541886,84.24,84.192,0.56754099]
[1646657694053,1.60541886,84.24,84.2,17.8177]
[1646657694253,1.60541886,84.241,84.2,17.8177]
[1646657694656,1.60541886,84.24,84.2,17.8177]
[1646657694854,0.25,84.239,84.192,0.56754099]
[1646657695454,0.25,84.239,84.191,6.25]
[1646657695655,0.25,84.239,84.182,0.81754099]
[1646657696455,0.25,84.239,84.183,0.56754099]
[1646657697957,1.85541886,84.239,84.183,0.56754099]
[1646657698154,1.85541886,84.239,84.19,17.82]
[1646657698355,17.8227,84.23,84.191,6.0]
[1646657698856,17.8227,84.23,84.175,6.0]
[1646657699156,22.5842,84.229,84.176,0.25]
[1646657699961,22.5842,84.229,84.177,0.56754099]
[1646657700262,22.5842,84.229,84.18,17.8221]
[1646657700459,22.5842,84.229,84.181,6.25]
[1646657702159,0.25,84.228,84.181,6.25]
[1646657702763,22.5842,84.229,84.181,6.25]
[1646657703962,22.5842,84.229,84.19,17.8192]
[1646657704162,22.5842,84.229,84.191,6.25]
[1646657704363,22.5842,84.229,84.191,6.81754099]
[1646657704566,22.5842,84.229,84.192,0.56754099]
[1646657704763,22.5842,84.229,84.192,6.56754099]
[1646657704965,22.5842,84.229,84.2,17.8175]
[1646657705166,22.5842,84.229,84.201,0.25]
[1646657708367,1.60541886,84.244,84.201,0.25]
[1646657708566,1.60541886,84.247,84.21,17.8158]
[1646657708766,1.60541886,84.252,84.211,6.25]
[1646657708966,1.60541886,84.253,84.211,6.25]
[1646657709167,34.81899045,84.259,84.211,6.25]
[1646657709168,1.60541886,84.255,84.211,6.25]
[1646657709368,1.60541886,84.255,84.211,0.25]
[1646657709567,1.60541886,84.253,84.211,0.25]
[1646657710370,1.60541886,84.252,84.211,0.25]
[1646657711270,1.60541886,84.252,84.203,6.25]
[1646657711472,1.60541886,84.25,84.203,0.25]
[1646657711670,1.60541886,84.25,84.19,0.56754099]
[1646657711871,1.60541886,84.24,84.182,6.25]
[1646657712272,1.60541886,84.241,84.182,6.25]
[1646657712470,1.60541886,84.238,84.182,6.25]
[1646657712669,1.60541886,84.237,84.182,6.25]
[1646657713071,0.25,84.236,84.182,6.25]
[1646657713271,0.25,84.236,84.19,17.8197]
[1646657713471,1.60541886,84.245,84.191,6.25]
[1646657713671,1.60541886,84.244,84.191,6.25]
[1646657713871,1.60541886,84.24,84.191,0.25]
[1646657714071,1.60541886,84.239,84.191,0.25]
[1646657714270,1.60541886,84.241,84.191,0.25]
[1646657714671,1.60541886,84.239,84.187,0.25]
[1646657715070,1.60541886,84.236,84.187,0.25]
[1646657715272,1.60541886,84.236,84.187,6.25]
[1646657715574,1.60541886,84.237,84.187,0.25]
[1646657715772,1.60541886,84.237,84.186,0.25]
[1646657716372,6.0,84.236,84.186,0.25]
[1646657716574,6.0,84.236,84.186,6.25]
[1646657716774,0.25,84.235,84.19,17.82]
[1646657716972,23.9253,84.235,84.191,6.25]
[1646657717175,39.62548153,84.233,84.191,6.25]
[1646657717572,6.0,84.232,84.191,6.25]
[1646657718376,6.0,84.234,84.2,17.8178]
[1646657718576,59.3925,84.28,84.2,17.8178]
[1646657718577,1.60541886,84.241,84.201,6.25]
[1646657718775,3.21425007,84.265,84.201,6.25]
[1646657718776,1.60541886,84.246,84.201,6.25]
[1646657718976,39.02757921,84.247,84.201,6.81754099]
[1646657719275,37.42216035,84.247,84.202,6.56754099]
[1646657719478,37.42216035,84.247,84.203,0.25]
[1646657719679,37.42216035,84.247,84.202,6.56754099]
[1646657719878,37.42216035,84.247,84.203,0.25]
[1646657720079,37.42216035,84.247,84.204,5.936]
[1646657720276,37.42216035,84.247,84.21,17.8138]
[1646657720480,1.60541886,84.25,84.211,6.25]
[1646657720681,1.60541886,84.251,84.211,6.81754099]
[1646657720878,1.60541886,84.254,84.212,5.936]
[1646657721078,6.0,84.253,84.213,0.25]
[1646657721378,44.70376152,84.252,84.214,5.934]
[1646657721576,6.0,84.251,84.215,0.25]
[1646657722376,23.5979,84.25,84.215,0.25]
[1646657722576,6.0,84.249,84.215,0.25]
[1646657722776,6.0,84.249,84.202,0.56754099]
[1646657723379,6.0,84.249,84.203,5.936]
[1646657723578,6.0,84.249,84.204,6.25]
[1646657723879,6.0,84.249,84.205,5.936]
[1646657724077,6.0,84.249,84.206,0.25]
[1646657724277,6.0,84.249,84.207,5.936]
[1646657724478,7.60541886,84.249,84.206,0.25]
[1646657724778,1.60541886,84.248,84.206,0.25]
[1646657724979,17.8207,84.24,84.206,0.25]
[1646657725179,17.8207,84.24,84.192,0.56754099]
[1646657725380,29.5019,84.239,84.187,0.25]
[1646657725582,29.5019,84.239,84.188,5.937]
[1646657725782,31.10731886,84.239,84.189,6.25]
[1646657725979,31.10731886,84.239,84.19,5.937]
[1646657726179,31.10731886,84.239,84.191,6.25]
[1646657726381,31.10731886,84.239,84.192,5.937]
[1646657726582,31.10731886,84.239,84.193,6.25]
[1646657726583,29.5019,84.239,84.193,6.25]
[1646657726781,29.5019,84.239,84.194,5.937]
[1646657726982,29.5019,84.239,84.194,6.50454099]
[1646657727383,31.10731886,84.239,84.194,5.937]
[1646657727583,31.10731886,84.239,84.182,5.937]
[1646657727783,17.8224,84.23,84.182,5.937]
[1646657727983,6.0,84.229,84.182,5.937]
[1646657728184,24.9727,84.228,84.182,5.937]
[1646657728386,24.9727,84.228,84.183,0.25]
[1646657728585,37.63574071,84.226,84.184,5.937]
[1646657728784,6.0,84.225,84.185,0.25]
[1646657729084,6.0,84.225,84.186,5.937]
[1646657729287,6.0,84.225,84.182,5.937]
[1646657730087,12.12,84.225,84.182,5.937]
[1646657730285,12.12,84.225,84.168,5.937]
[1646657730489,12.12,84.225,84.163,5.938]
[1646657730786,1.60541886,84.224,84.163,5.938]
[1646657731088,6.0,84.223,84.164,0.56754099]
[1646657731286,0.25,84.222,84.164,0.56754099]
[1646657732085,17.8246,84.22,84.164,25.39387888]
[1646657732286,6.0,84.219,84.165,0.25]
[1646657732687,6.0,84.219,84.165,25.07633789]
[1646657733487,17.8269,84.21,84.165,25.07633789]
[1646657733687,29.839,84.209,84.165,25.07633789]
[1646657735790,29.839,84.209,84.165,0.25]
[1646657735990,29.839,84.209,84.161,0.25]
[1646657736391,29.839,84.209,84.156,0.25]
[1646657736691,29.839,84.209,84.161,24.82633789]
[1646657736890,23.839,84.209,84.162,0.25]
[1646657737291,6.25,84.208,84.162,0.25]
[1646657737991,42.77327461,84.199,84.155,6.0]
[1646657738190,23.216,84.198,84.156,0.25]
[1646657738991,23.216,84.198,84.155,6.0]
[1646657739993,23.216,84.198,84.155,30.82633789]
[1646657740193,23.216,84.198,84.156,0.25]
[1646657740533,6.0,84.197,84.156,0.25]
[1646657742295,0.25,84.196,84.156,0.25]
[1646657742496,6.0,84.197,84.156,0.25]
[1646657742795,0.25,84.196,84.156,0.25]
[1646657743496,23.216,84.198,84.156,0.25]
[1646657743694,0.25,84.197,84.156,0.25]
[1646657745497,0.25,84.197,84.155,0.25]
[1646657745697,6.25,84.197,84.155,0.25]
[1646657748028,6.25,84.197,84.14,15.79930732]
[1646657748203,0.11618631,84.196,84.141,6.25]
[1646657748503,0.11618631,84.188,84.133,6.0]
[1646657748703,14.28,84.197,84.127,6.0]
[1646657748905,14.28,84.197,84.127,30.82633789]
[1646657749103,14.28,84.197,84.128,24.82633789]
[1646657749404,14.28,84.197,84.129,6.0]
[1646657749805,14.28,84.197,84.13,25.07633789]
[1646657750004,6.25,84.197,84.13,24.82633789]
[1646657750205,6.25,84.197,84.131,24.82633789]
[1646657750807,17.8317,84.19,84.131,24.82633789]
[1646657751006,6.0,84.189,84.131,24.82633789]
[1646657751207,6.0,84.189,84.12,17.8342]
[1646657751408,23.9437,84.188,84.121,12.191]
[1646657751607,6.0,84.187,84.121,37.01733789]
[1646657752110,17.8351,84.18,84.122,24.82633789]
[1646657752306,6.0,84.179,84.13,17.8327]
[1646657752509,6.0,84.179,84.131,5.941]
[1646657752708,23.9437,84.178,84.132,0.25]
[1646657752909,23.9437,84.178,84.133,5.941]
[1646657753107,23.9437,84.178,84.134,6.25]
[1646657753308,23.9437,84.178,84.135,5.941]
[1646657753508,23.9437,84.178,84.136,6.25]
[1646657754110,23.9437,84.178,84.14,17.83]
[1646657754310,0.25,84.177,84.14,17.83]
[1646657756330,6.25,84.177,84.14,17.83]
[1646657757334,6.25,84.177,84.141,5.941]
[1646657757532,6.25,84.177,84.137,5.941]
[1646657760139,6.25,84.177,84.14,17.8306]
[1646657760337,6.25,84.177,84.141,5.941]
[1646657760537,6.0,84.177,84.142,0.25]
[1646657760737,22.6881,84.198,84.143,5.941]
[1646657760939,46.9868,84.198,84.144,6.25]
[1646657761137,46.9868,84.198,84.15,17.8282]
[1646657761337,0.25,84.197,84.151,12.19]
[1646657762238,0.25,84.197,84.151,11.94]
[1646657762639,0.25,84.197,84.151,5.94]
[1646657762838,0.25,84.197,84.14,17.8301]
[1646657763437,0.25,84.197,84.141,5.94]
[1646657763638,46.9868,84.198,84.15,17.8284]
[1646657763838,46.9868,84.198,84.151,6.19]
[1646657764941,0.25,84.197,84.151,6.19]
[1646657765341,0.25,84.197,84.152,6.0]
[1646657765539,0.25,84.197,84.153,6.19]
[1646657765838,0.25,84.197,84.16,17.8261]
[1646657766440,0.25,84.197,84.153,6.19]
[1646657766640,0.25,84.197,84.154,6.0]
[1646657766843,0.25,84.197,84.155,0.25]
[1646657767042,0.25,84.197,84.133,6.0]
[1646657767241,0.25,84.197,84.134,0.25]
[1646657767443,0.25,84.197,84.135,5.94]
[1646657767640,46.9868,84.198,84.15,17.8282]
[1646657767842,46.9868,84.198,84.151,5.94]
[1646657768242,46.9868,84.198,84.134,5.94]
[1646657768646,46.9868,84.198,84.135,6.0]
[1646657768843,46.9868,84.198,84.136,5.94]
[1646657769143,0.25,84.197,84.14,17.8304]
[1646657769343,0.25,84.197,84.141,6.19]
[1646657770446,0.25,84.197,84.15,17.8282]
[1646657770744,0.25,84.197,84.151,5.94]
[1646657771143,0.25,84.197,84.143,5.94]
[1646657771343,0.25,84.197,84.144,0.25]
[1646657771545,17.8314,84.19,84.144,0.25]
[1646657771844,17.8314,84.19,84.145,5.94]
[1646657772143,17.8314,84.19,84.146,0.25]
[1646657772344,46.9868,84.198,84.147,5.94]
[1646657772745,0.25,84.197,84.15,17.828]
[1646657772944,0.25,84.197,84.151,5.94]
[1646657775543,0.25,84.197,84.146,0.25]
[1646657775745,0.25,84.197,84.143,0.25]
[1646657776143,0.25,84.197,84.144,5.94]
[1646657776344,0.25,84.197,84.145,0.25]
[1646657776544,0.25,84.197,84.146,5.94]
[1646657777346,6.25,84.197,84.146,5.94]
[1646657777546,0.25,84.197,84.146,5.94]
[1646657777751,0.25,84.197,84.15,17.8285]
[1646657777947,0.25,84.197,84.151,5.94]
[1646657778747,0.25,84.197,84.152,0.25]
[1646657778950,0.25,84.197,84.153,5.94]
[1646657779147,0.25,84.197,84.154,0.25]
[1646657779347,0.25,84.197,84.155,5.939]
[1646657779548,0.25,84.197,84.156,0.25]
[1646657779749,0.25,84.197,84.157,5.939]
[1646657781783,0.25,84.197,84.16,17.8263]
[1646657781954,1.60541886,84.215,84.161,6.189]
[1646657782154,1.60541886,84.215,84.163,119.4]
[1646657782354,23.0726,84.227,84.164,12.189]
[1646657782355,1.60541886,84.221,84.164,12.189]
[1646657782554,1.60541886,84.225,84.164,131.589]
[1646657782756,1.60541886,84.226,84.17,17.8235]
[1646657782960,23.0726,84.227,84.171,12.188]
[1646657783155,23.0726,84.227,84.171,5.938]
[1646657783355,23.0726,84.227,84.172,6.25]
[1646657783557,23.0726,84.227,84.173,5.938]
[1646657783755,23.0726,84.227,84.174,6.25]
[1646657783956,23.0726,84.227,84.18,17.8185]
[1646657784157,23.0726,84.227,84.181,6.187]
[1646657784357,23.0726,84.227,84.182,6.0]
[1646657784557,23.0726,84.227,84.183,6.187]
[1646657784758,23.0726,84.227,84.184,6.0]
[1646657784959,1.60541886,84.244,84.19,17.8198]
[1646657785159,1.60541886,84.245,84.191,6.187]
[1646657785359,1.60541886,84.252,84.193,119.4]
[1646657785561,1.60541886,84.267,84.194,131.586]
[1646657785761,1.60541886,84.272,84.194,156.41233789]
[1646657785960,30.3336,84.277,84.196,119.4]
[1646657785961,6.0,84.277,84.196,119.4]
[1646657786160,6.0,84.278,84.211,119.4]
[1646657786361,1.60541886,84.293,84.213,119.4]
[1646657786561,1.60541886,84.293,84.215,119.4]
[1646657786861,1.60541886,84.295,84.217,119.4]
[1646657787061,1.60541886,84.3,84.219,119.4]
[1646657787261,38.39977541,84.303,84.221,119.4]
[1646657787462,38.39977541,84.303,84.22,23.4]
[1646657787463,1.60541886,84.31,84.241,119.4]
[1646657787660,1.60541886,84.325,84.243,119.4]
[1646657787861,1.60541886,84.326,84.244,125.65]
[1646657788068,6.0,84.325,84.244,125.65]
[1646657788260,6.0,84.325,84.244,126.21754099]
[1646657788462,44.49566359,84.324,84.245,0.56754099]
[1646657788663,6.0,84.323,84.245,0.56754099]
[1646657789161,6.0,84.323,84.26,17.8014]
[1646657789363,0.25,84.322,84.261,6.25]
[1646657789864,44.49566359,84.324,84.261,6.25]
[1646657790064,17.8038,84.32,84.261,6.25]
[1646657792165,6.0,84.319,84.261,6.25]
[1646657792966,17.8057,84.31,84.261,6.25]
[1646657793169,6.0,84.309,84.261,6.25]
[1646657793367,0.25,84.308,84.261,6.25]
[1646657794767,0.25,84.309,84.261,6.25]
[1646657795366,0.25,84.309,84.261,0.25]
[1646657795572,0.25,84.309,84.252,0.25]
[1646657797071,17.8085,84.3,84.252,0.25]
[1646657797271,17.8085,84.3,84.237,6.0]
[1646657797470,17.8085,84.3,84.227,0.56754099]
[1646657797671,36.27250547,84.298,84.215,6.0]
[1646657798072,17.8104,84.29,84.22,17.811]
[1646657798272,17.8104,84.29,84.221,6.0]
[1646657798671,17.8104,84.29,84.222,0.25]
[1646657799170,17.8104,84.29,84.23,17.8105]
[1646657799371,22.5628,84.296,84.231,0.25]
[1646657799572,22.5628,84.296,84.223,25.86430176]
[1646657799771,22.5628,84.296,84.224,6.25]
[1646657799971,22.5628,84.296,84.224,56.94063965]
[1646657800271,22.5628,84.296,84.24,17.8087]
[1646657800470,22.5628,84.296,84.241,6.25]
[1646657801271,0.25,84.295,84.25,17.8066]
[1646657801569,0.25,84.295,84.251,0.25]
[1646657802170,0.25,84.295,84.251,6.25]
[1646657802771,0.25,84.295,84.251,0.25]
[1646657803474,23.0137,84.32,84.26,17.8045]
[1646657803672,6.0,84.31,84.261,0.25]
[1646657803876,6.0,84.339,84.253,119.4]
[1646657804072,6.0,84.342,84.254,125.65]
[1646657804288,17.15,84.34,84.255,6.0]
[1646657804490,51.42435739,84.339,84.256,0.25]
[1646657804690,17.8014,84.33,84.27,17.8019]
[1646657804890,6.0,84.329,84.271,0.25]
[1646657805192,125.0,84.328,84.27,17.5519]
[1646657805489,6.0,84.327,84.27,17.5519]
[1646657805690,17.8035,84.32,84.27,17.5519]
[1646657805993,17.8035,84.32,84.255,6.0]
[1646657805994,6.25,84.319,84.255,6.0]
[1646657806193,6.25,84.319,84.241,0.56754099]
[1646657806194,0.14048613,84.318,84.241,0.56754099]
[1646657806592,119.54048613,84.318,84.241,0.56754099]
[1646657806794,35.58519948,84.299,84.241,0.56754099]
[1646657807092,0.22636347,84.297,84.212,0.56754099]
[1646657807292,119.4,84.289,84.212,0.56754099]
[1646657807495,0.22636347,84.286,84.179,119.4]
[1646657807692,48.50646347,84.286,84.18,5.935]
[1646657807892,17.8165,84.26,84.19,59.3828]
[1646657808093,48.74802857,84.259,84.2,17.8178]
[1646657808293,48.74802857,84.259,84.201,12.186]
[1646657809094,48.74802857,84.259,84.21,17.8145]
[1646657809294,48.74802857,84.259,84.211,6.184]
[1646657814098,48.74802857,84.259,84.211,0.25]
[1646657816401,48.74802857,84.259,84.212,5.934]
[1646657816601,48.74802857,84.259,84.213,0.25]
[1646657816801,48.74802857,84.259,84.214,5.934]
[1646657817001,48.74802857,84.259,84.215,0.25]
[1646657817406,0.25,84.259,84.214,5.784]
[1646657817601,6.25,84.269,84.22,17.8127]
[1646657817801,6.25,84.269,84.221,6.0]
[1646657818003,0.25,84.269,84.221,6.0]
[1646657818203,6.25,84.278,84.221,6.56754099]
[1646657818404,43.64289867,84.277,84.222,6.56754099]
[1646657818604,6.25,84.276,84.222,0.56754099]
[1646657818808,6.25,84.276,84.223,0.56754099]
[1646657819006,6.25,84.276,84.215,6.0]
[1646657819007,6.25,84.276,84.22,17.813]
[1646657819214,6.25,84.276,84.221,6.25]
[1646657820010,17.8142,84.27,84.222,0.56754099]
[1646657820309,0.25,84.269,84.222,6.0]
[1646657820510,6.25,84.269,84.214,5.784]
[1646657820711,124.04941568,84.268,84.115,18.0658]
[1646657820912,1.60541886,84.264,84.133,24.4037]
[1646657821111,0.25,84.267,84.164,0.56754099]
[1646657821112,0.32147136,84.258,84.164,0.56754099]
[1646657821416,0.32147136,84.256,84.179,0.56754099]
[1646657821610,9.35147136,84.256,84.179,0.56754099]
[1646657821812,0.25,84.255,84.158,0.56754099]
[1646657822211,0.25,84.255,84.159,23.79449617]
[1646657822411,0.32147136,84.254,84.16,6.0]
[1646657822610,0.6493,84.253,84.161,0.25]
[1646657822810,0.6493,84.253,84.161,49.63061936]
[1646657823010,0.6494,84.254,84.162,6.0]
[1646657823211,34.3566102,84.239,84.18,17.8214]
[1646657823410,0.25,84.238,84.18,17.8214]
[1646657823610,0.22428593,84.237,84.163,23.79449617]
[1646657823810,0.25,84.238,84.164,6.0]
[1646657823811,0.6495,84.236,84.164,6.0]
[1646657824017,0.23929299,84.235,84.164,6.0]
[1646657824211,119.4,84.229,84.14,0.56754099]
[1646657824410,119.4,84.229,84.14,6.0]
[1646657824411,1.19781067,84.228,84.14,6.0]
[1646657824613,0.29811067,84.226,84.14,6.0]
[1646657824812,0.29811067,84.224,84.14,6.0]
[1646657825011,0.65,84.223,84.14,6.0]
[1646657825212,0.29811067,84.222,84.141,0.25]
[1646657825412,46.84132951,84.209,84.15,17.8277]
[1646657825713,46.84132951,84.209,84.151,0.25]
[1646657825714,0.25,84.208,84.151,0.25]
[1646657826914,17.8298,84.2,84.151,0.25]
[1646657827214,0.25,84.199,84.141,0.25]
[1646657828318,6.25,84.199,84.141,0.25]
[1646657828516,17.8312,84.19,84.141,0.25]
[1646657828723,6.25,84.189,84.141,0.25]
[1646657828917,6.25,84.189,84.131,6.0]
[1646657829120,0.19181341,84.188,84.121,0.56754099]
[1646657829318,0.19390623,84.186,84.102,0.56754099]
[1646657829517,119.4,84.179,84.102,0.56754099]
[1646657829717,17.8332,84.18,84.089,47.11149617]
[1646657829718,43.84840909,84.176,84.091,0.56754099]
[1646657829918,119.4,84.169,84.091,0.56754099]
[1646657830119,0.45640705,84.168,84.095,0.56754099]
[1646657830319,6.45640705,84.168,84.092,23.79449617]
[1646657830720,17.8406,84.16,84.093,0.81754099]
[1646657830918,6.25,84.159,84.093,0.25]
[1646657831518,0.25,84.159,84.083,0.56754099]
[1646657831721,17.841,84.15,84.083,0.56754099]
[1646657831920,46.64436009,84.149,84.083,0.56754099]
[1646657832217,46.64436009,84.149,84.09,17.8411]
[1646657832418,46.64436009,84.149,84.091,6.0]
[1646657832621,6.0,84.148,84.091,6.0]
[1646657832820,0.25,84.147,84.091,6.0]
[1646657833221,119.4,84.139,84.091,6.0]
[1646657833422,0.12739353,84.137,84.072,0.56754099]
[1646657833622,0.12739353,84.137,84.062,23.79449617]
[1646657834023,6.25,84.138,84.062,23.79449617]
[1646657834223,17.8464,84.13,84.062,23.79449617]
[1646657834422,119.65,84.129,84.062,23.79449617]
[1646657834622,119.65,84.129,84.05,0.4091141]
[1646657834623,0.1989517,84.126,84.05,24.20361027]
[1646657834826,0.20238369,84.124,84.05,24.20361027]
[1646657835023,0.6282,84.123,84.05,24.20361027]
[1646657835224,119.4,84.12,84.05,24.20361027]
[1646657835423,17.8504,84.11,84.05,24.20361027]
[1646657835625,0.25,84.109,84.05,0.4091141]
[1646657835824,0.8742,84.109,84.05,0.4091141]
[1646657836024,6.8742,84.109,84.05,0.4091141]
[1646657836425,0.8742,84.109,84.05,0.4091141]
[1646657836625,46.33845825,84.121,84.05,42.05141027]
[1646657836827,46.33845825,84.121,84.051,6.25]
[1646657837426,0.6162,84.12,84.051,6.25]
[1646657837626,18.4644,84.12,84.051,6.25]
[1646657838046,0.25,84.119,84.051,6.25]
[1646657838246,0.6141,84.118,84.051,6.25]
[1646657838949,7.82,84.119,84.051,6.25]
[1646657839545,0.25,84.119,84.051,6.25]
[1646657839745,0.25,84.12,84.06,17.8457]
[1646657839945,0.25,84.12,84.061,6.25]
[1646657840345,46.33845825,84.121,84.061,6.25]
[1646657840748,0.608,84.12,84.061,6.25]
[1646657841357,0.608,84.12,84.07,17.8436]
[1646657841549,46.33845825,84.121,84.071,6.25]
[1646657841954,46.33845825,84.121,84.071,30.04449617]
[1646657842152,46.33845825,84.121,84.071,6.25]
[1646657842449,46.33845825,84.121,84.08,17.8396]
[1646657842650,46.33845825,84.121,84.081,6.25]
[1646657844150,46.33845825,84.121,84.09,17.8392]
[1646657844349,24.5022,84.147,84.091,6.25]
[1646657844553,6.0,84.146,84.091,6.25]
[1646657844751,6.0,84.146,84.091,0.25]
[1646657844953,6.0,84.146,84.092,6.0]
[1646657845151,0.25,84.145,84.093,0.25]
[1646657845352,44.68362014,84.145,84.091,0.25]
[1646657845551,6.0,84.144,84.091,0.25]
[1646657845757,6.0,84.144,84.091,6.25]
[1646657845758,0.25,84.143,84.091,6.25]
[1646657845951,6.0,84.144,84.091,6.25]
[1646657847156,0.25,84.143,84.091,6.25]
[1646657849856,0.25,84.144,84.1,17.8378]
[1646657850057,23.5678,84.159,84.101,6.25]
[1646657850658,23.5678,84.159,84.101,0.25]
[1646657850856,24.901,84.178,84.11,17.835]
[1646657851057,41.86726851,84.177,84.111,6.25]
[1646657851459,0.25,84.176,84.111,6.25]
[1646657851858,0.25,84.176,84.112,6.0]
[1646657852057,119.65,84.176,84.113,0.25]
[1646657852261,17.8361,84.17,84.111,0.25]
[1646657852458,0.25,84.169,84.111,0.25]
[1646657852859,8.94,84.169,84.111,0.25]
[1646657853061,8.94,84.169,84.102,0.25]
[1646657853861,0.6485,84.168,84.102,0.25]
[1646657854559,0.6485,84.168,84.11,17.8356]
[1646657854863,0.6485,84.168,84.111,6.25]
[1646657855059,0.25,84.169,84.111,6.25]
[1646657860166,0.25,84.169,84.12,17.8331]
[1646657860367,0.25,84.176,84.121,6.25]
[1646657860566,66.53716851,84.177,84.111,6.25]
[1646657860567,41.86726851,84.177,84.111,6.25]
[1646657860763,41.86726851,84.177,84.112,119.4]
[1646657860964,0.6121,84.192,84.111,6.25]
[1646657860965,0.6121,84.192,84.123,119.4]
[1646657861173,0.6121,84.192,84.124,125.65]
[1646657861369,0.6121,84.192,84.131,119.4]
[1646657861663,0.6121,84.192,84.132,6.25]
[1646657862363,0.6121,84.192,84.14,17.8225]
[1646657862564,0.6121,84.192,84.141,6.25]
[1646657862766,0.25,84.209,84.141,6.25]
[1646657862767,0.6483,84.208,84.141,6.25]
[1646657863164,0.6483,84.208,84.141,0.25]
[1646657863464,119.4,84.199,84.141,0.25]
[1646657863666,29.9615,84.198,84.126,0.25]
[1646657864463,119.4,84.197,84.126,0.25]
[1646657864664,17.8346,84.18,84.126,0.25]
[1646657864865,46.47665216,84.179,84.126,6.25]
[1646657865065,46.47665216,84.179,84.126,0.25]
[1646657865268,46.47665216,84.179,84.116,0.25]
[1646657865665,55.44665216,84.179,84.108,0.25]
[1646657866065,55.44665216,84.179,84.12,17.8324]
[1646657866267,55.44665216,84.179,84.121,6.25]
[1646657866873,46.47665216,84.179,84.121,6.25]
[1646657867168,46.22665216,84.179,84.13,17.8306]